Cogmind - Beta 16 @@@ ROGUE MODE // 2025.11.29 @ 11:48:27 Player: Kathisto Result: Destroyed by as-64908 with Assembled Heavy Rifle Performance ------------- Evolutions (0) 0 Regions Visited (2) 400 Robots Destroyed (25) 125 Value Destroyed (427) 427 Prototype IDs (0) 0 Alien Tech Used (0) 0 Bonus (0) 0 TOTAL SCORE: 952 Bonus ------- None Cogmind --------- Core Integrity 0/250 Matter 277/300 Energy 265/265 System Corruption 0% Temperature Cool (0) Movement Treading (240) Ox1 Location -10/Mines Parts ------- > --- POWER (1) -------- Improved Ion Engine > --- PROPULSION (2) --- Light Treads Light Treads > --- UTILITY (2) ------ High-capacity Storage Unit Improved Targeting Computer > --- WEAPON (2) ------- Assault Rifle Assault Rifle > --- INVENTORY (20) --- Improved Ion Engine Improved Ion Engine Light Treads Light Treads Light Treads Light Treads Large Matter Pod (150) Assault Rifle Assault Rifle Light Assault Rifle Light Assault Rifle Light Assault Rifle Light Assault Rifle Plasma Cutter Peak State ------------ > --- POWER ------------ Improved Ion Engine > --- PROPULSION ------- Light Treads Light Treads > --- UTILITY ---------- High-capacity Storage Unit Improved Targeting Computer > --- WEAPON ----------- Assault Rifle Assault Rifle > --- INVENTORY -------- Improved Ion Engine Improved Ion Engine Light Treads Light Treads Light Treads Light Treads Light Treads Large Matter Pod Assault Rifle Assault Rifle Assault Rifle Light Assault Rifle Light Assault Rifle Light Assault Rifle Light Assault Rifle [Rating: 10] Favorites ----------- Power Improved Ion Engine Engine Improved Ion Engine Propulsion Light Treads Treads Light Treads Utility Targeting Computer Storage Large Storage Unit Processor Targeting Computer Weapon Assault Rifle Ballistic Gun Assault Rifle Build | -11 -10 -10 ------- Run | Yrd Mat Min Slots Evolved . | . . . Power . | . . . Propulsion . | . . . Utility . | . . . Weapon . | . . . Parts Attached 15 | 7 6 2 Power 2 | 1 1 . Engine 2 | 1 1 . Core . | . . . Reactor . | . . . Propulsion 3 | 2 . 1 Treads 3 | 2 . 1 Leg . | . . . Wheel . | . . . Hover . | . . . Flight . | . . . Utility 6 | 2 4 . Device . | . . . Storage 4 | 2 2 . Processor 2 | . 2 . Hackware . | . . . Protection . | . . . Artifact . | . . . Weapon 4 | 2 1 1 Energy Gun . | . . . Energy Cannon . | . . . Ballistic Gun 4 | 2 1 1 Ballistic Cannon . | . . . Launcher . | . . . Special Weapon . | . . . Impact Weapon . | . . . Slashing Weapon . | . . . Piercing Weapon . | . . . Special Melee Weapon . | . . . Unidentified Prototypes . | . . . Parts Lost 2 | . . 2 Power . | . . . Propulsion 1 | . . 1 Utility . | . . . Weapon 1 | . . 1 Highest Loss Streak 2 | . . 2 To Critical Strikes . | . . . Average Backups 12 | 1 12 15 Power 1 | . 1 2 Propulsion 3 | . 3 4 Utility 1 | . 2 1 Weapon 5 | . 5 6 Tool/Special . | . . . Unused Backups 13 | . 1 12 Power 3 | . 1 2 Propulsion 4 | . . 4 Utility 1 | . . 1 Weapon 5 | . . 5 Tool/Special . | . . . Average Slot Usage (%) 99 | . 99 99 Engine 14 | . 14 14 Treads 28 | . 28 28 Storage 14 | . 14 14 Processor 13 | . 13 14 Ballistic Gun 27 | . 28 27 Peak Build Rating 10 | 6 10 10 Average Rating 8 | 4 8 9 On Entrance 5 | . 6 10 Avg Prop Armor Cover (%) . | . . . Naked Turns . | . . . Heaviest Build 51 | 13 51 51 Greatest Support 40 | 40 40 40 Greatest Overweight (x) 2 | 2 1 1 Average Overweight (x) . | . . 1 Largest Inventory Capacity 20 | 8 20 20 Average Capacity 16 | 7 16 20 Most Carried 16 | 3 16 16 Average Carried 12 | 1 12 15 Final Capacity 20 | 8 20 20 Final Carried 16 | 2 16 14 Class Distribution -------------------- 100% | Mutant Dominant Class ---------------- Mutant | -10/Materials Mutant | -10/Mines Resources | -11 -10 -10 ----------- Run | Yrd Mat Min Matter Collected 792 | 275 448 69 Remotely . | . . . Salvage Created 704 | 54 564 86 Parts 53 | 3 38 12 Haulers Intercepted 2 | . 2 . Recyclers Shooed 1 | . 1 . Parts Field Recycled . | . . . Retrieved Matter . | . . . Parts Self-Destructed . | . . . Prevented . | . . . Parts Restored . | . . . Kills | -11 -10 -10 ------- Run | Yrd Mat Min Combat Hostiles Destroyed 19 | . 13 6 Melee 1 | . 1 . Guns 18 | . 12 6 Classes Destroyed 6 | 1 5 . Worker 1 | . 1 . Hauler 2 | . 2 . Recycler 1 | 1 . . Watcher 2 | . 2 . Swarmer 12 | . 6 6 Grunt 7 | . 7 . Best Kill Streak 4 | 1 4 3 Combat Bots Only 4 | . 4 3 Max Kills in Single Turn 2 | 1 2 1 Gunslinging . | . . . Exploded . | . . . Melee 1 | . 1 . Uniques/NPCs Destroyed . | . . . Combat | -11 -10 -10 -------- Run | Yrd Mat Min Hostile Shots Fired 69 | . 44 25 Missed 14 | . 10 4 Hits 55 | . 34 21 Projectile 55 | . 34 21 AOE 6 | . . 6 Critical Strikes 1 | . 1 . Damage Taken 773 | . 378 395 Core 263 | . 77 186 Absorbed by Shields . | . . . Core Remaining (%) 100 | 100 . . Volleys Fired 64 | 3 49 12 Largest 2 | 2 2 2 Hottest 40 | 40 40 40 Shots Fired 128 | 6 98 24 Gun 128 | 6 98 24 Cannon . | . . . Launcher . | . . . Special . | . . . Kinetic 128 | 6 98 24 Thermal . | . . . Explosive . | . . . Electromagnetic . | . . . Robot Hit Streak 18 | 2 17 18 Robot Miss Streak 4 | 2 4 2 Penetration Max . | . . . Secondary Targets 2 | . 1 1 Max Gunslinging Chain 1 | . 1 1 Shots Hit Robots 87 | 3 68 16 Core Hits 39 | 2 29 8 Critical Kills 1 | . 1 . Critical Parts Destroyed . | . . . Critical Strikes 1 | . 1 . Destroy 1 | . 1 . Melee Attacks . | . . . Impact . | . . . Slashing . | . . . Piercing . | . . . Sneak Attacks . | . . . Combat Hostiles . | . . . Follow-up Attacks . | . . . Damage Inflicted 1084 | 37 817 230 Guns 1058 | 37 807 214 Cannons . | . . . Explosions . | . . . Melee . | . . . Ramming 26 | . 10 16 Kinetic 1058 | 37 807 214 Thermal . | . . . Explosive . | . . . Electromagnetic . | . . . Impact . | . . . Slashing . | . . . Piercing . | . . . Highest Corruption . | . . . Average Corruption . | . . . Corruption Purged . | . . . Corruption Blocked . | . . . Overload Shots . | . . . Overflow Damage . | . . . Projectiles . | . . . Explosions . | . . . Melee . | . . . Knockbacks . | . . . Impact . | . . . Kinetic . | . . . Secondary . | . . . Self-Inflicted Damage . | . . . Shots . | . . . Rammed 5 | . 3 2 Targets Rammed 6 | . 4 2 Kicked . | . . . Crushed 1 | . 1 . Highest Temperature 21 | . 21 . Average Temperature 5 | . 5 . Received Heat Transfer 189 | . 177 12 Siege Activations . | . . . Martial Activations . | . . . Shielding Activations . | . . . Robots Disrupted . | . . . Combat Hostiles . | . . . Robots Corrupted . | . . . Combat Hostiles . | . . . Parts Fried . | . . . Impact Corruptions . | . . . Robots Melted . | . . . Combat Hostiles . | . . . Parts Melted . | . . . Heat Transferred . | . . . Parts Sabotaged . | . . . Parts Stolen . | . . . Parts Stripped . | . . . Power Chain Reactions . | . . . Alert | -11 -10 -10 ------- Run | Yrd Mat Min Maximum Alert Level . | . . . Low Security (%) 100 | 100 100 100 Level 1 . | . . . Level 2 . | . . . Level 3 . | . . . Level 4 . | . . . Level 5 . | . . . High Security . | . . . Max Security . | . . . Peak Influence 142 | 5 142 96 Initial 16 | . . 16 Average 42 | . 48 34 Influence Increases 528 | 5 383 140 Destroy 0b10 Robot/C 380 | . 260 120 Destroy 0b10 Robot/NC 30 | 5 25 . Destroy Leader 88 | . 68 20 Lose Combat Pursuer 30 | . 30 . Influence Decreases 528 | 5 340 183 Entered New Map 27 | . . 27 Time Decay 501 | 5 340 156 Squads Dispatched 2 | . 2 . Investigation 1 | . 1 . Extermination . | . . . Reinforcement 1 | . 1 . Assault . | . . . Garrison . | . . . Intercept . | . . . Searches Triggered . | . . . Construction Impeded . | . . . Haulers Reinforced . | . . . Active Scanning Responses . | . . . Cargo Convoy Interrupts . | . . . Stealth | -11 -10 -10 --------- Run | Yrd Mat Min Distress Signals . | . . . Communications Jammed . | . . . Distress Signals . | . . . Times Spotted 31 | . 21 10 Peak Tracking Total 4 | . 4 3 Tactical Retreats 2 | . 2 . Traps | -11 -10 -10 ------- Run | Yrd Mat Min Traps Triggered 1 | . 1 . Indirectly . | . . . Trap Hack Attempts . | . . . Triggered . | . . . Disarmed . | . . . Reprogrammed . | . . . Reused . | . . . Traps Extracted . | . . . Installed . | . . . Triggered . | . . . Machines | -11 -10 -10 ---------- Run | Yrd Mat Min Machines Disabled . | . . . Max in Single Turn . | . . . Machines Repaired . | . . . Machines Dismantled . | . . . Machines Sabotaged . | . . . Overloaded Fab Kills . | . . . Hacking | -11 -10 -10 --------- Run | Yrd Mat Min Machines Accessed 1 | . . 1 Terminals . | . . . Fabricators . | . . . Repair Stations . | . . . Recycling Units . | . . . Scanalyzers . | . . . Garrison Access . | . . . Total Hacks 1 | . . 1 Successful 1 | . . 1 Failed . | . . . Catastrophic . | . . . Database Lockouts . | . . . Manual . | . . . Terminals . | . . . Fabricators . | . . . Repair Stations . | . . . Recycling Units . | . . . Scanalyzers . | . . . Garrison Access . | . . . Terminal Hacks 1 | . . 1 Open Door 1 | . . 1 Fabricator Hacks . | . . . Repair Station Hacks . | . . . Recycling Unit Hacks . | . . . Scanalyzer . | . . . Garrison Access Hacks . | . . . Unauthorized Hacks . | . . . Terminals . | . . . Fabricators . | . . . Repair Stations . | . . . Recycling Units . | . . . Scanalyzers . | . . . Garrison Access . | . . . Data Cores Recovered . | . . . Used . | . . . Hacking Detections . | . . . Full Trace Events . | . . . Feedback Events . | . . . Feedback Blocked . | . . . Robot Schematics Acquired . | . . . Robots Built . | . . . Authchips . | . . . Time . | . . . Total Robot Build Rating . | . . . Part Schematics Acquired . | . . . Parts Built . | . . . Authchips . | . . . Time . | . . . Total Part Build Rating . | . . . Part Studies Acquired . | . . . Parts Repaired . | . . . Time . | . . . Parts Recycled . | . . . Recycled Matter . | . . . Retrieved Matter . | . . . Retrieved Components . | . . . Parts Scanalyzed . | . . . Part Schematics Acquired . | . . . Parts Damaged . | . . . Bothacking | -11 -10 -10 ------------ Run | Yrd Mat Min Used RIF Installer . | . . . Robots Hacked . | . . . Non-combat . | . . . Combat . | . . . Robot Hacks Applied . | . . . Relay Couplers Released . | . . . Fabnet Peak Effective % . | . . . Robots Rewired . | . . . Allies Hacked . | . . . Hacks Repelled . | . . . Allies | -11 -10 -10 -------- Run | Yrd Mat Min Total Allies . | . . . Largest Group . | . . . Highest-Rated Group . | . . . Highest-Rated Ally . | . . . Total Orders . | . . . Ally Attacks . | . . . Total Damage . | . . . Kills . | . . . Allies Corrupted . | . . . Allies Melted 1 | . . 1 Intel | -11 -10 -10 ------- Run | Yrd Mat Min Active Infowar (turns) . | . . . Robot Analysis Total . | . . . Derelict Logs Recovered 2 | . . 2 Drone Launches . | . . . Drone Recoveries . | . . . Exploration | -11 -10 -10 ------------- Run | Yrd Mat Min Turns Passed 1893 | 91 1334 468 Spaces Moved 853 | 49 629 175 Core 12 | 12 . . Treads 841 | 37 629 175 Legs . | . . . Wheels . | . . . Hover . | . . . Flight . | . . . Fastest Speed 50 | 50 160 240 Average Speed 185 | 141 173 240 Slowest Speed 240 | 160 240 240 Overloaded Moves . | . . . Propulsion Burnouts . | . . . Robots Hopped . | . . . Potential Cave-ins . | . . . Cave-ins Triggered . | . . . Exploration Rate (%) 44 | 6 90 36 Regions Visited 2 Branch Regions 1 Pre-discovered Areas . | . . . Known Exits Taken . | . . . Unknown Exits Taken 2 | 1 1 . Scrap Searched . | . . . Spaces Dug . | . . . Terrain Destroyed . | . . . Melee . | . . . Projectile . | . . . AOE . | . . . Terrain Rammed . | . . . Walls Destroyed . | . . . Machines Disabled . | . . . Actions | -11 -10 -10 --------- Run | Yrd Mat Min Total 1039 | 63 779 197 Wait 78 | . 72 6 Move 851 | 48 628 175 Hop . | . . . Pick Up 19 | 3 16 . Fast Attach 8 | 7 1 . Attach 2 | . . 2 Detach . | . . . Swap 5 | . 5 . Drop 6 | 2 4 . Fire 64 | 3 49 12 Melee . | . . . Ram . | . . . Kick . | . . . Crush 6 | . 4 2 Escape Stasis . | . . . Rewire . | . . . Trap . | . . . Miscellaneous . | . . . Route ------- -11/Scrapyard -10/Materials (discovered 6 exits: [*Mat x3] / *Min x2 / [*Sub]) -10/Mines (discovered 1 exit: [*Sub]) History --------- Turn | Location | Event 8 | -11/Scrapyard | Discovered new exit (range 16) 92 | -11/Scrapyard | Entered Materials 316 | -10/Materials | Build established: Mutant 383 | -10/Materials | Discovered new exit (range 9) 405 | -10/Materials | Discovered new exit (range 14) 485 | -10/Materials | Discovered new exit (range 14) 1069 | -10/Materials | Discovered new exit (range 5) 1176 | -10/Materials | Discovered new exit (range 9) 1304 | -10/Materials | Discovered new exit (range 10) 1426 | -10/Materials | Entered Mines 1508 | -10/Mines | Learned Materials garrison access intel 1518 | -10/Mines | Learned Materials terminal intel 1665 | -10/Mines | Discovered new exit (range 15) 1726 | -10/Mines | Assembled infested the area 1731 | -10/Mines | Assisted by a Guerilla fighting off Assembled 1750 | -10/Mines | Core integrity fell below 50% 1758 | -10/Mines | Core integrity fell below 20% 1846 | -10/Mines | Found a hidden stash of uninstalled traps 1880 | -10/Mines | Met a Derelict who couldn't figure out how to use a Trap Extractor 1894 | -10/Mines | Destroyed by as-64908 with Assembled Heavy Rifle Last Messages --------------- 01846_ A stash of uninstalled traps is collected here! 01879_ Connecting with SHOP.Sys... 01879_ Current location identified: Mines >>Open Door Sealed Doors opened. 01880_ AN-V9V(g): "So I found this thing but I have no idea how to use it. And who the hell trapped this place to begin with?!" 01880_ AN-V9V(g): "I give up! Here you try, I'm outta here before something nasty happens..." 01880_ Tosses Imp. Trap Extractor to the ground. 01880_ AN-V9V(g) triggered EMP Trap. 01880_ A bubble of electromagnetic force engulfs the area. 01880_ SHOP.Sys disabled. 01880_ AN-V9V(g) destroyed. 01880_ Machine disabled. 01884_ as-79870 sneak attacks. 01884_ K-01 Serf destroyed. Map ----- +----------------------------------------------------+ | | | | | | | | | | | | | | | | | | | | | ?????????????????????????????????????????????????? | | ?????????????????????????????????????????????????? | | ?????????????????????????????????????????????????? | | ?????????????????????????????????????????????????? | | ????????????????????#####????????????????????????? | | ????????????????????#;;;;????????????????????????? | | ????????????????????# ????????????????????????? | | ????????????????????# ! !????????????????????????? | | ????????????????????# ] ????????????????????????? | | ????????????????????? !!=?###????????????????????? | | ????????????????????###% ## ##???????????????????? | | ????????????????????# ########????????????? | | ????????????????????# =$%! #?????????? | | ????????????????????# ########?????????????? | | ????????????????????# aa###????????????????????? | | ????????????????????## @#??????????????????????? | | ?????????????????????#### #??????????????????????? | | ????????????????????????# #??????????????????????? | | ????????????????????????# #??????????????????????? | | ???????????????????????## #??????????????????????? | | ??????????????????????## ##?????????????????????? | | ??????????????????????# ##????????????????????? | | ?????????????????###### ##???????????????????? | | ?????????????????# ##??????????????????? | | ?????????????????# ## ###& & ##?????????????????? | | ????????????????????# ??##& #?????????????????? | | ???????????????????? ????## #?????????????????? | | ??????????????????? ??????# #?????????????????? | | ?????????????????? ??????## ##?????????????????? | | ?????????????????# ????????## #??????????????????? | | ?????????????????#??????????# #??????????????????? | | ????????????????????????????# #??????###?????????? | | ????????????????????????????# #?????# ##????????? | | ????????????????????????????# ###### #????????? | | ????????????????????????????# #????????? | | ????????????????????????????#### ## #????????? | | ???????????????????????????????# ## #????????? | | ???????????????????????????????# ### #????????? | | ???????????????????????????????# #?? #????????? | | ???????????????????????????????# #### ##????????? | +----------------------------------------------------+ Best States ------------- Heat Dissipation 25 Energy Generation 12 Energy Capacity 265 Matter Stores 300 Matter Capacity 300 Sight Range 16 Terrain Scan Density 10 Evasion (%) 50 Targeting Accuracy 6 Recoil Reduction 2 Item Schematics ----------------- None Robot Schematics ------------------ None Fabricated ------------ Nothing Repaired ---------- Nothing Studied --------- None Alien Tech Used ----------------- None Achievements -------------- None Challenges ------------ None Game ------ Seed AssembledBackupBeam Manual? 0 Play Time 00:09:43 Cumulative 256.4 hours Start 2025.11.28 @ 22:12:55 End 2025.11.29 @ 11:48:27 Sessions 6 Manual Loads 0 Difficulty Rogue Special Mode None Game No. 143 Rogue 143 Adventurer 0 Explorer 0 Win Type - Total 31 Types 13/1/11/1/0/1/2/1/0/1 Lore% 82 Gallery% 73 Achievement% 59 Wizard Run 0 Options --------- Layout 1 ASCII 0 Keyboard 0 Movement Arrows Keybinds 0 Fullscreen 2 Font 24/Tamsyn Map View 50x35 Zoom Use 0% Tactical HUD 1 Map Filters NONE Filters NONE Steam 1 RUN: cc98ae7c-5a0c-4cb5-9f97-1113ce9747f9